[Event "SixDays Budapest GM-B May 2024"]
[Site "Budapest"]
[Date "2024.05.21"]
[Round "9.1"]
[White "Fodor, Tamas Jr."]
[Black "Jinan Jomon"]
[Result "1-0"]
[ECO "E48"]
[WhiteElo "2486"]
[BlackElo "2380"]
[Annotator "RC"]
[PlyCount "55"]
[EventDate "2024.05.15"]
[EventType "tourn"]
[EventCountry "HUN"]
[SourceTitle "playchess.com"]
[Source "ChessBase"]
[SourceQuality "1"]
[TimeControl "40/5400+30:1800+30"]

1. d4 {[%emt 0:00:04]} Nf6 {[%emt 0:08:08]} 2. c4 {[%emt 0:00:10]} e6 {[%emt 0:00:46]} 3. Nc3 {[%emt 0:00:05]} Bb4 {[%emt 0:00:18]} 4. e3 {[%emt 0:00:06]} O-O {[%emt 0:00:19]} 5. Bd3 {[%emt 0:00:05]} d5 {[%emt 0:00:09]} 6. cxd5 {[%emt 0:00:08]} exd5 {[%emt 0:00:12]} 7. a3 {[%emt 0:00:10]} Bxc3+ {[%emt 0:01:04]} 8. bxc3 {[%emt 0:00:06]} c5 {[%emt 0:00:04]} 9. Ne2 {[%emt 0:00:18]} Nc6 {[%emt 0:03:36]} 10. f3 {[%emt 0:01:14]} b6 {[%emt 0:02:27]} 11. O-O {[%emt 0:01:14]} Re8 {[%emt 0:11:43]} 12. Kh1 {[%emt 0:03:05]} Na5 {[%emt 0:06:46]} 13. Ra2 {[%emt 0:02:53]} Be6 {[%emt 0:21:33]} 14. g4 {[%emt 0:02:15]} Rc8 {[%emt 0:00:57]} 15. Ng3 {[%emt 0:01:04]} cxd4 {[%emt 0:02:34]} 16. cxd4 {[%emt 0:00:25]} Nc4 {[%emt 0:00:08]} 17. Rg2 {[%emt 0:03:00]} Nd7 {[%emt 0:02:19]} 18. f4 {[%emt 0:06:23]} Nf8 {[%emt 0:01:42]} 19. f5 {[%emt 0:00:28]} Bd7 {[%emt 0:00:05]} 20. f6 {[%emt 0:00:13]} g6 {[%emt 0:04:16]} 21. Qf3 {[%emt 0:01:49]} Qc7 {[%emt 0:04:24]} 22. Nf5 {[%emt 0:01:21]} Bxf5 {[%emt 0:01:12]} 23. gxf5 {[%emt 0:00:16]} Qd8 {[%emt 0:01:32]} 24. fxg6 {[%emt 0:00:35]} hxg6 {[%emt 0:00:29]} 25. Bxg6 {[%emt 0:01:25]} fxg6 {[%emt 0:01:01]} 26. f7+ {[%emt 0:00:22]} Kg7 {[%emt 0:00:04]} 27. fxe8=Q {[%emt 0:00:12]} Qxe8 {[%emt 0:00:02]} 28. Qxd5 {[%emt 0:00:11]} 1-0

[Event "SixDays Budapest GM-B May 2024"]
[Site "Budapest"]
[Date "2024.05.21"]
[Round "9.2"]
[White "Kuru, Atilla"]
[Black "Lu, Maximillian"]
[Result "1-0"]
[ECO "B23"]
[WhiteElo "2313"]
[BlackElo "2373"]
[Annotator "TA"]
[PlyCount "119"]
[EventDate "2024.05.15"]
[EventType "tourn"]
[EventCountry "HUN"]
[SourceTitle "playchess.com"]
[Source "ChessBase"]
[SourceQuality "1"]
[TimeControl "40/5400+30:1800+30"]

{[%evp 27,119,0,16,8,31,18,32,18,23,24,22,16,29,36,35,0,2,0,0,-50,-57,-51,-38,-121,-128,-140,-133,-145,-144,-152,-122,-136,-14,-8,-12,-8,-8,-9,-6,-8,-8,-8,0,0,-8,-8,0,0,0,0,0,-5,-6,0,0,-8,0,-18,-19,-46,-49,-65,-28,-100,-16,-22,-14,-19,-18,-17,-8,-65,-91,-99,-56,-55,0,-319,-117,-519,-8,-8,-8,-8,-8,-8,-8,-8,-8,-8,29978,29979,29979,29980]} 1. e4 {[%emt 0:15:25]} c5 {[%emt 0:03:39]} 2. Nc3 {[%emt 0:00:08]} a6 {[%emt 0:00:07]} 3. g3 {[%emt 0:00:34]} Nc6 {[%emt 0:00:21]} 4. Bg2 {[%emt 0:00:13]} g6 {[%emt 0:00:01]} 5. Nge2 {[%emt 0:00:38]} Bg7 {[%emt 0:00:13]} 6. d3 {[%emt 0:00:42]} e6 {[%emt 0:00:15]} 7. Be3 {[%emt 0:00:41]} d6 {[%emt 0:00:09]} 8. Qd2 {[%emt 0:01:08]} Nd4 {[%emt 0:01:06]} 9. O-O {[%emt 0:00:41]} Ne7 {[%emt 0:02:11]} 10. Bh6 {[%emt 0:09:19]} O-O {[%emt 0:06:50]} 11. Nxd4 {[%emt 0:02:03]} cxd4 {[%emt 0:00:28]} 12. Ne2 {[%emt 0:00:06]} e5 {[%emt 0:01:44]} 13. Bxg7 {[%emt 0:00:21]} Kxg7 {[%emt 0:00:01]} 14. c3 {[%emt 0:07:23]} dxc3 {[%emt 0:05:59]} 15. bxc3 {[%emt 0:01:18]} Be6 {[%emt 0:01:06]} 16. f4 {[%emt 0:01:13]} f6 {[%emt 0:01:04]} 17. h3 {[%emt 0:03:13]} Rc8 {[%emt 0:12:20]} 18. g4 {[%emt 0:01:14]} Qa5 {[%emt 0:09:42]} 19. Kh1 {[%emt 0:08:57]} exf4 {[%emt 0:14:19]} (19... Bg8 {simplifies} 20. a4 Nc6 21. Qe3 exf4 22. Qxf4 Ne5) 20. Qxf4 {[%emt 0:07:05]} Qc7 {[%emt 0:04:33]} 21. Nd4 {[%emt 0:04:32]} Bd7 {[%emt 0:02:13]} 22. Rae1 {[%emt 0:04:26]} b5 {[%emt 0:02:16]} 23. h4 {[%emt 0:05:25]} ({Better is} 23. Ne2 $11) 23... Qc5 {[%emt 0:05:04]} 24. Nf3 {[%emt 0:02:57]} g5 {[%emt 0:05:55]} (24... Qxc3 $2 25. Qxd6 Rf7 26. Qxd7 $18) 25. Qg3 {[%emt 0:02:46]} (25. hxg5 $15 fxg5 26. Qxg5+ Qxg5 27. Nxg5) 25... Ng6 $17 {[%emt 0:01:28]} (25... Qxc3 $2 26. Qxd6 Qc7 27. Qxe7+ $18) 26. hxg5 {[%emt 0:00:43]} fxg5 {[%emt 0:00:12]} 27. d4 {[%emt 0:00:18]} Qxc3 {[%emt 0:00:28]} 28. Qxd6 {[%emt 0:00:06]} Bxg4 {[%emt 0:00:57]} 29. Nxg5 {[%emt 0:01:48]} h6 {[%emt 0:01:37]} (29... Qd2 $1 $17 30. Ne6+ Bxe6 31. Qxe6 Rc2 (31... Qxd4 32. Rd1 $17) (31... Qxg2+ $2 32. Kxg2 Rce8 33. Qxa6 $18)) 30. Ne6+ $11 {[%emt 0:02:42]} Bxe6 {[%emt 0:00:02]} 31. Qxe6 {[%emt 0:00:02]} Qxd4 {[%emt 0:00:21]} 32. Qxa6 {[%emt 0:00:19]} Qe5 {[%emt 0:01:03]} 33. Qb7+ {[%emt 0:01:15]} Ne7 {[%emt 0:00:16]} 34. Qd7 {[%emt 0:00:31]} h5 {[%emt 0:08:03]} 35. Rb1 {[%emt 0:01:45]} Rxf1+ {[%emt 0:05:10]} 36. Rxf1 {[%emt 0:00:47]} Rf8 {[%emt 0:00:28]} (36... Rc2 {is interesting.} 37. a4 b4 38. Qd3 Rc3) 37. Rd1 {[%emt 0:04:23]} Qg5 {[%emt 0:02:17]} 38. Rg1 {[%emt 0:01:42]} Kh6 {[%emt 0:01:12]} 39. Bh3 {[%emt 0:02:08]} Qh4 {[%emt 0:00:02]} 40. Qd2+ {[%emt 0:00:41]} Rf4 {[%emt 0:01:15]} 41. Qe3 {[%emt 0:31:46]} Ng6 {[%emt 0:30:36]} (41... Qf2 {simplifies} 42. Qxf2 Rxf2 43. Rb1 Rxa2 44. Rxb5 Ng6) 42. e5 {[%emt 0:00:51]} Nxe5 {[%emt 0:00:48]} 43. Qg3 {[%emt 0:04:33]} Qf6 {[%emt 0:00:25]} 44. Qe3 {[%emt 0:02:59]} Kh7 {[%emt 0:01:57]} 45. Re1 {[%emt 0:00:16]} (45. Qa7+ $11 Kh6 46. Qe3) 45... Qc6+ {[%emt 0:01:38]} (45... Rf3 $17 46. Qe4+ Ng6) 46. Bg2 $11 {[%emt 0:00:24]} Rh4+ {[%emt 0:00:18]} 47. Kg1 {[%emt 0:00:01]} Rg4 $1 {[%emt 0:00:14]} 48. Re2 {[%emt 0:00:55]} Ng6 {[%emt 0:00:28]} 49. Kf1 {[%emt 0:00:56]} (49. Qa7+ $11 Kg8 50. Qb8+ Nf8 51. Kh2) 49... Qf6+ {[%emt 0:01:12]} 50. Rf2 {[%emt 0:00:08]} Nf4 {[%emt 0:00:35]} 51. Be4+ {[%emt 0:00:47]} Kh6 {[%emt 0:00:23]} ({Black should play} 51... Kg7 $15 52. Qb3 (52. Qa7+ Kh6 $17) 52... Qa1+ 53. Qb1 Qd4) 52. Bb1 $2 {[%emt 0:00:22][%mdl 8192]} (52. Rc2 $1 $11 Kg7 53. Qa7+ Kh6 54. Qe3) 52... h4 $2 {[%emt 0:00:36]} (52... b4 $19 {aiming for ...Rh4.} 53. Rc2 h4) 53. Qe4 $2 {[%emt 0:00:22][%mdl 8192] [#]} (53. Rf3 $17 {was the crucial defense.}) 53... Rg1+ $2 {[%emt 0:00:47]} (53... Kg5 $1 $19 {[%mdl 512]} 54. a3 (54. Qe3 h3) 54... h3) 54. Kxg1 $11 {[%emt 0:00:17]} Nh3+ {[%emt 0:00:00]} 55. Kh2 {[%emt 0:00:09]} (55. Kg2 $2 {is a self mate.} Qxf2+ 56. Kxh3 Qg3#) 55... Qxf2+ {[%emt 0:00:40]} 56. Qg2 $1 {[%emt 0:00:03]} Qxg2+ {[%emt 0:00:44]} 57. Kxg2 {[%emt 0:00:01]} Nf4+ {[%emt 0:00:29]} 58. Kf3 {[%emt 0:00:06] [#]} h3 $2 {[%emt 0:00:40][%mdl 8192]} ({Much less strong is} 58... Kg5 59. Bc2 $15) (58... Ng6 $1 $11) 59. Kxf4 {[%emt 0:00:26]} h2 {[%emt 0:00:06]} 60. Be4 {[%emt 0:00:03]} 1-0

[Event "SixDays Budapest GM-B May 2024"]
[Site "Budapest"]
[Date "2024.05.21"]
[Round "9.3"]
[White "Stefansson, Vignir Vatnar"]
[Black "Horvath, Adam"]
[Result "1-0"]
[ECO "E11"]
[WhiteElo "2463"]
[BlackElo "2448"]
[Annotator "RC"]
[PlyCount "141"]
[EventDate "2024.05.15"]
[EventType "tourn"]
[EventCountry "HUN"]
[SourceTitle "playchess.com"]
[Source "ChessBase"]
[SourceQuality "1"]
[TimeControl "40/5400+30:1800+30"]

1. d4 {[%emt 0:05:29]} Nf6 {[%emt 0:00:16]} 2. c4 {[%emt 0:00:19]} e6 {[%emt 0:00:06]} 3. Nf3 {[%emt 0:01:05]} Bb4+ {[%emt 0:00:18]} 4. Bd2 {[%emt 0:01:19]} a5 {[%emt 0:00:57]} 5. g3 {[%emt 0:00:16]} b6 {[%emt 0:00:11]} 6. Bg2 {[%emt 0:00:07]} Bb7 {[%emt 0:00:03]} 7. O-O {[%emt 0:00:07]} O-O {[%emt 0:00:03]} 8. Bg5 {[%emt 0:01:56]} Be7 {[%emt 0:00:41]} 9. Qc2 {[%emt 0:02:10]} Be4 {[%emt 0:03:47]} 10. Qc1 {[%emt 0:00:19]} Bb7 {[%emt 0:00:44]} 11. Nc3 {[%emt 0:00:56]} Ne4 {[%emt 0:24:53]} 12. Nxe4 {[%emt 0:02:13]} Bxe4 {[%emt 0:00:04]} 13. Bxe7 {[%emt 0:00:06]} Qxe7 {[%emt 0:00:03]} 14. Qf4 {[%emt 0:00:15]} d5 {[%emt 0:00:07]} 15. cxd5 {[%emt 0:06:53]} exd5 {[%emt 0:03:39]} 16. Rac1 {[%emt 0:00:36]} c5 {[%emt 0:02:25]} 17. dxc5 {[%emt 0:01:01]} bxc5 {[%emt 0:00:04]} 18. Qe3 {[%emt 0:04:23]} Qb7 {[%emt 0:01:58]} 19. Qa3 {[%emt 0:07:31]} Na6 {[%emt 0:05:26]} 20. Ne1 {[%emt 0:03:14]} Qb5 {[%emt 0:28:51]} 21. Nd3 {[%emt 0:06:51]} Bxg2 {[%emt 0:01:29]} 22. Kxg2 {[%emt 0:00:04]} c4 {[%emt 0:00:40]} 23. Nf4 {[%emt 0:00:19]} d4 {[%emt 0:01:33]} 24. Qf3 {[%emt 0:01:13]} Rad8 {[%emt 0:01:13]} 25. b3 {[%emt 0:03:39]} c3 {[%emt 0:00:43]} 26. e3 {[%emt 0:00:41]} Nb4 {[%emt 0:04:11]} 27. a4 {[%emt 0:07:39]} Qb6 {[%emt 0:06:42]} 28. exd4 {[%emt 0:05:03]} Na2 {[%emt 0:00:14]} 29. Ra1 {[%emt 0:07:29]} Qxb3 {[%emt 0:00:25]} 30. Ne2 {[%emt 0:00:30]} Qc4 {[%emt 0:09:51]} 31. Nxc3 {[%emt 0:02:19]} Nxc3 {[%emt 0:00:39]} 32. Rfc1 {[%emt 0:00:05]} Rc8 {[%emt 0:00:16]} 33. Ra3 {[%emt 0:00:03]} Qxd4 {[%emt 0:00:10]} 34. Rcxc3 {[%emt 0:00:05]} Rxc3 {[%emt 0:00:26]} 35. Qxc3 {[%emt 0:00:03]} Qe4+ {[%emt 0:00:29]} 36. Qf3 {[%emt 0:00:20]} Qd4 {[%emt 0:01:41]} 37. Qd3 {[%emt 0:01:05]} Rd8 {[%emt 0:00:24]} 38. Qf3 {[%emt 0:09:35]} g6 {[%emt 0:00:22]} 39. Qc6 {[%emt 0:01:02]} Qd5+ {[%emt 0:00:58]} 40. Qxd5 {[%emt 0:00:05]} Rxd5 {[%emt 0:00:02]} 41. Rf3 {[%emt 0:30:19]} Kf8 {[%emt 0:32:49]} 42. Rf4 {[%emt 0:00:31]} Ke7 {[%emt 0:00:14]} 43. Kf3 {[%emt 0:00:24]} f5 {[%emt 0:00:35]} 44. Rc4 {[%emt 0:00:50]} Kf6 {[%emt 0:00:59]} 45. h4 {[%emt 0:00:34]} h6 {[%emt 0:00:40]} 46. Ke3 {[%emt 0:00:27]} Ke5 {[%emt 0:00:34]} 47. Rc6 {[%emt 0:00:35]} f4+ {[%emt 0:00:27]} 48. gxf4+ {[%emt 0:00:30]} Kf5 {[%emt 0:00:04]} 49. f3 {[%emt 0:02:04]} Rd1 {[%emt 0:00:33]} 50. Rc5+ {[%emt 0:00:39]} Kf6 {[%emt 0:00:04]} 51. Rxa5 {[%emt 0:01:14]} Rh1 {[%emt 0:00:05]} 52. Ra6+ {[%emt 0:01:27]} Kf5 {[%emt 0:00:04]} 53. Ra5+ {[%emt 0:05:02]} Kf6 {[%emt 0:00:06]} 54. Ra6+ {[%emt 0:02:03]} Kf5 {[%emt 0:00:54]} 55. Ra8 {[%emt 0:00:30]} Re1+ {[%emt 0:01:44]} 56. Kf2 {[%emt 0:00:23]} Ra1 {[%emt 0:00:10]} 57. Rf8+ {[%emt 0:00:26]} Ke6 {[%emt 0:00:04]} 58. Re8+ {[%emt 0:00:03]} Kf5 {[%emt 0:00:42]} 59. Re4 {[%emt 0:00:06]} Ra3 {[%emt 0:00:16]} 60. Kg3 {[%emt 0:00:17]} Ra2 {[%emt 0:00:29]} 61. Re5+ {[%emt 0:00:26]} Kf6 {[%emt 0:00:04]} 62. Ra5 {[%emt 0:03:13]} Rc2 {[%emt 0:00:13]} 63. Ra6+ {[%emt 0:01:16]} Kf5 {[%emt 0:01:24]} 64. h5 {[%emt 0:01:15]} g5 {[%emt 0:00:04]} 65. Ra5+ {[%emt 0:00:26]} Kf6 {[%emt 0:00:04]} 66. fxg5+ {[%emt 0:00:41]} hxg5 {[%emt 0:00:05]} 67. Rb5 {[%emt 0:00:20]} Rc4 {[%emt 0:00:32]} 68. a5 {[%emt 0:00:04]} Rh4 {[%emt 0:02:30]} 69. Rb6+ {[%emt 0:01:13]} Kf7 {[%emt 0:00:53]} 70. a6 {[%emt 0:00:09]} Ra4 {[%emt 0:00:04]} 71. Rb7+ {[%emt 0:00:06]} 1-0

[Event "SixDays Budapest GM-B May 2024"]
[Site "Budapest"]
[Date "2024.05.21"]
[Round "9.4"]
[White "Palczert, Matyas"]
[Black "Borgaonkar Akshay"]
[Result "1/2-1/2"]
[ECO "B40"]
[WhiteElo "2333"]
[BlackElo "2374"]
[Annotator "TA"]
[PlyCount "71"]
[EventDate "2024.05.15"]
[EventType "tourn"]
[EventCountry "HUN"]
[SourceTitle "playchess.com"]
[Source "ChessBase"]
[SourceQuality "1"]
[TimeControl "40/5400+30:1800+30"]

{[%evp 27,71,17,8,0,20,21,14,0,23,-14,-4,-8,9,0,14,0,0,-10,-12,-18,-13,-13,-25,-30,-34,-54,-49,-48,-23,-37,-18,-34,-12,-20,0,-21,0,0,0,-14,-14,-25,0,0,0,-16]} 1. e4 {[%emt 0:00:11]} c5 {[%emt 0:00:03]} 2. Nf3 {[%emt 0:00:13]} e6 {[%emt 0:00:04]} 3. d4 {[%emt 0:00:06]} cxd4 {[%emt 0:00:04]} 4. Nxd4 {[%emt 0:00:07]} Nf6 {[%emt 0:00:03]} 5. Nc3 {[%emt 0:00:13]} Nc6 {[%emt 0:00:06]} 6. Be2 {[%emt 0:03:14]} Qc7 {[%emt 0:01:01]} 7. O-O {[%emt 0:02:49]} Be7 {[%emt 0:00:58]} 8. Be3 {[%emt 0:00:41]} O-O {[%emt 0:00:42]} 9. f4 {[%emt 0:01:26]} d6 {[%emt 0:00:21]} 10. Kh1 {[%emt 0:02:02]} a6 {[%emt 0:00:54]} 11. a3 {[%emt 0:05:34]} Bd7 {[%emt 0:03:57]} 12. Qe1 {[%emt 0:02:35]} Nxd4 {[%emt 0:01:19]} 13. Bxd4 {[%emt 0:00:07]} Bc6 {[%emt 0:00:50]} 14. Qg3 {[%emt 0:02:09]} b5 {[%emt 0:03:52]} 15. Bd3 {[%emt 0:03:10]} Rad8 {[%emt 0:00:50]} 16. Rae1 {[%emt 0:06:03]} Qd7 {[%emt 0:09:46]} 17. Ne2 {[%emt 0:06:08]} Qb7 {[%emt 0:11:27]} 18. Ng1 {[%emt 0:01:22]} g6 {[%emt 0:08:47]} 19. Qe3 {[%emt 0:03:09]} Ng4 {[%emt 0:15:18]} 20. Qe2 {[%emt 0:02:10]} Bf6 {[%emt 0:02:46]} 21. Nf3 {[%emt 0:08:18]} (21. Bxf6 {simplifies} Nxf6 22. Nf3 Rfe8 23. Nd4) 21... e5 {[%emt 0:03:39]} 22. fxe5 {[%emt 0:11:07]} Nxe5 {[%emt 0:00:16]} 23. Nxe5 {[%emt 0:00:32]} Bxe5 {[%emt 0:00:08]} 24. Bxe5 {[%emt 0:01:42]} dxe5 {[%emt 0:00:02]} 25. Qe3 {[%emt 0:02:09]} Qe7 {[%emt 0:02:28]} (25... Kg7 {is more complex.} 26. g4 h6 27. h3 Qd7) 26. Qb6 Rd6 {[%emt 0:00:35][%cal Oc6e4]} 27. Qc5 {[%emt 0:04:26]} Rfd8 {[%emt 0:02:09]} 28. Rf2 {[%emt 0:02:05]} Re6 {[%emt 0:06:06]} 29. Qe3 {[%emt 0:00:41]} (29. Qxe7 {simplifies} Rxe7 30. g4 Kg7 31. Kg2) 29... Rd7 {[%emt 0:00:43]} 30. Ref1 {[%emt 0:00:25]} Qh4 {[%emt 0:01:17]} 31. Rf3 {[%emt 0:07:01]} h6 {[%emt 0:00:30]} 32. Kg1 {[%emt 0:13:34]} Kg7 {[%emt 0:02:41]} 33. Rh3 {[%emt 0:01:33]} Qg5 {[%emt 0:00:03]} 34. Qf2 {[%emt 0:00:29]} Qe7 {[%emt 0:07:49]} 35. Qe3 {[%emt 0:02:25]} Qg5 {[%emt 0:00:15]} 36. Qf2 {[%emt 0:00:19] Weighted Error Value: White=0.08 (flawless) /Black=0.11 (very precise) .  Inaccurate:     	White=1     	---        OK:         	White=8     	Black=6      Best:        	White=1     	---} 1/2-1/2

[Event "SixDays Budapest GM-B May 2024"]
[Site "Budapest"]
[Date "2024.05.21"]
[Round "9.5"]
[White "Krishnan, Ritvik"]
[Black "Lamard, Guillaume"]
[Result "1/2-1/2"]
[ECO "B03"]
[WhiteElo "2298"]
[BlackElo "2504"]
[Annotator "RC"]
[PlyCount "186"]
[EventDate "2024.05.15"]
[EventType "tourn"]
[EventCountry "HUN"]
[SourceTitle "playchess.com"]
[Source "ChessBase"]
[SourceQuality "1"]
[TimeControl "40/5400+30:1800+30"]

1. e4 {[%emt 0:08:41]} Nf6 {[%emt 0:00:06]} 2. e5 {[%emt 0:00:25]} Nd5 {[%emt 0:00:03]} 3. d4 {[%emt 0:00:05]} d6 {[%emt 0:00:04]} 4. c4 {[%emt 0:00:22]} Nb6 {[%emt 0:00:04]} 5. f4 {[%emt 0:00:04]} dxe5 {[%emt 0:00:04]} 6. fxe5 {[%emt 0:00:03]} Bf5 {[%emt 0:00:15]} 7. Nc3 {[%emt 0:01:52]} e6 {[%emt 0:00:03]} 8. Be3 {[%emt 0:04:37]} Bb4 {[%emt 0:00:14]} 9. Nf3 {[%emt 0:03:51]} c5 {[%emt 0:00:04]} 10. Qd2 {[%emt 0:15:56]} Nc6 {[%emt 0:06:58]} 11. a3 {[%emt 0:02:07]} cxd4 {[%emt 0:05:48]} 12. Nxd4 {[%emt 0:01:50]} Nxd4 {[%emt 0:08:01]} 13. Bxd4 {[%emt 0:05:23]} Bxc3 {[%emt 0:15:17]} 14. Bxc3 {[%emt 0:02:45]} Qh4+ {[%emt 0:02:18]} 15. Qf2 {[%emt 0:00:13]} Qe4+ {[%emt 0:00:09]} 16. Qe2 {[%emt 0:01:14]} Rc8 {[%emt 0:04:33]} 17. Qxe4 {[%emt 0:08:57]} Bxe4 {[%emt 0:00:04]} 18. Rd1 Nxc4 {[%emt 0:04:32]} 19. Rd4 {[%emt 0:08:07]} Bd5 {[%emt 0:00:25]} 20. Bxc4 {[%emt 0:00:10]} Rxc4 {[%emt 0:02:19]} 21. Rxc4 {[%emt 0:00:20]} Bxc4 {[%emt 0:00:04]} 22. Kf2 {[%emt 0:00:05]} Kd7 {[%emt 0:02:26]} 23. Rc1 {[%emt 0:00:57]} Bd5 {[%emt 0:01:16]} 24. Bb4 {[%emt 0:01:29]} f6 {[%emt 0:01:03]} 25. Bd6 {[%emt 0:02:44]} fxe5 {[%emt 0:05:04]} 26. Bxe5 {[%emt 0:00:11]} Rf8+ {[%emt 0:00:07]} 27. Ke3 {[%emt 0:00:51]} Rf5 {[%emt 0:00:22]} 28. Kd4 {[%emt 0:01:59]} Bc6 {[%emt 0:00:23]} 29. Rc2 {[%emt 0:01:05]} g6 {[%emt 0:07:47]} 30. Rd2 {[%emt 0:02:13]} Ke7 {[%emt 0:00:41]} 31. Rc2 {[%emt 0:01:41]} Rf1 {[%emt 0:00:34]} 32. Re2 {[%emt 0:01:50]} g5 {[%emt 0:04:09]} 33. Ke3 {[%emt 0:05:26]} Rd1 {[%emt 0:01:03]} 34. Bc3 {[%emt 0:00:48]} Rh1 {[%emt 0:03:16]} 35. g3 {[%emt 0:01:00]} g4 {[%emt 0:01:36]} 36. Rf2 {[%emt 0:01:06]} Bf3 {[%emt 0:00:10]} 37. Kf4 {[%emt 0:01:04]} h6 {[%emt 0:04:53]} 38. Bb4+ {[%emt 0:01:16]} Kf7 {[%emt 0:00:30]} 39. Bc3 {[%emt 0:01:40]} a6 {[%emt 0:02:24]} 40. Ke3 {[%emt 0:01:27]} e5 {[%emt 0:01:23]} 41. Rd2 {[%emt 0:34:03]} Ke6 {[%emt 0:31:40]} 42. Rf2 {[%emt 0:00:14]} Bc6 {[%emt 0:02:36]} 43. Rd2 {[%emt 0:02:34]} h5 {[%emt 0:00:18]} 44. Rf2 {[%emt 0:00:12]} Bb5 {[%emt 0:00:31]} 45. Rc2 {[%emt 0:00:28]} Rd1 {[%emt 0:00:48]} 46. Rd2 {[%emt 0:00:37]} Re1+ {[%emt 0:00:11]} 47. Kf2 {[%emt 0:00:01]} Rf1+ {[%emt 0:00:11]} 48. Kg2 {[%emt 0:00:29]} Rf3 {[%emt 0:02:13]} 49. Rf2 {[%emt 0:01:15]} Re3 {[%emt 0:00:16]} 50. Kg1 {[%emt 0:02:49]} Bc6 {[%emt 0:02:24]} 51. Kf1 {[%emt 0:01:16]} Be4 {[%emt 0:06:26]} 52. Bd2 {[%emt 0:01:57]} Rd3 {[%emt 0:00:10]} 53. Ke2 {[%emt 0:00:45]} Rd8 {[%emt 0:01:26]} 54. Bc3 {[%emt 0:00:19]} Rh8 {[%emt 0:00:21]} 55. Ke3 {[%emt 0:01:22]} Bc6 {[%emt 0:00:06]} 56. Bb4 {[%emt 0:01:02]} Bf3 {[%emt 0:00:27]} 57. h4 {[%emt 0:01:03]} Rc8 {[%emt 0:00:26]} 58. Bc3 {[%emt 0:00:06]} Rc4 {[%emt 0:00:50]} 59. Rd2 {[%emt 0:01:14]} Rc7 {[%emt 0:02:17]} 60. Rd8 {[%emt 0:00:31]} Bc6 {[%emt 0:02:54]} 61. Rd2 {[%emt 0:01:22]} Rc8 {[%emt 0:00:14]} 62. Rf2 {[%emt 0:00:07]} Bd5 {[%emt 0:00:15]} 63. Re2 {[%emt 0:00:30]} Bf3 {[%emt 0:00:22]} 64. Rf2 {[%emt 0:00:13]} b5 {[%emt 0:00:29]} 65. Rd2 {[%emt 0:00:23]} Rc4 {[%emt 0:00:09]} 66. Kf2 {[%emt 0:00:17]} Re4 {[%emt 0:00:19]} 67. b3 {[%emt 0:01:07]} Kf5 {[%emt 0:00:26]} 68. Bb4 {[%emt 0:00:35]} Rd4 {[%emt 0:00:26]} 69. Bc3 {[%emt 0:00:51]} Ke4 {[%emt 0:02:05]} 70. Bxd4 {[%emt 0:00:51]} exd4 {[%emt 0:00:03]} 71. Ke1 {[%emt 0:00:25]} Ke3 {[%emt 0:00:17]} 72. a4 {[%emt 0:00:51]} b4 {[%emt 0:01:18]} 73. a5 {[%emt 0:00:37]} d3 {[%emt 0:00:53]} 74. Re2+ {[%emt 0:00:32]} Kd4 {[%emt 0:00:04]} 75. Re7 {[%emt 0:00:15]} Kc3 {[%emt 0:00:32]} 76. Rd7 {[%emt 0:00:44]} Kxb3 {[%emt 0:00:49]} 77. Rxd3+ {[%emt 0:00:19]} Kc2 {[%emt 0:01:19]} 78. Rd8 {[%emt 0:00:31]} b3 {[%emt 0:00:24]} 79. Rc8+ {[%emt 0:00:14]} Kd3 {[%emt 0:00:14]} 80. Rb8 {[%emt 0:00:32]} Kc3 {[%emt 0:00:27]} 81. Rc8+ {[%emt 0:00:09]} Kd3 {[%emt 0:00:36]} 82. Rd8+ {[%emt 0:00:05]} Ke3 {[%emt 0:00:28]} 83. Rb8 {[%emt 0:01:09]} Bd5 {[%emt 0:00:03]} 84. Rb6 {[%emt 0:00:36]} Bc4 {[%emt 0:00:24]} 85. Kd1 {[%emt 0:00:39]} Kf3 {[%emt 0:00:15]} 86. Rh6 {[%emt 0:00:35]} Kxg3 {[%emt 0:00:29]} 87. Rxh5 {[%emt 0:00:02]} Kh2 {[%emt 0:00:22]} 88. Rg5 {[%emt 0:00:18]} g3 {[%emt 0:01:28]} 89. h5 {[%emt 0:00:06]} g2 {[%emt 0:01:11]} 90. h6 {[%emt 0:00:07]} Bd3 {[%emt 0:00:04]} 91. Kc1 {[%emt 0:00:12]} g1=Q+ {[%emt 0:00:10]} 92. Rxg1 {[%emt 0:00:04]} Kxg1 {[%emt 0:00:05]} 93. Kb2 {[%emt 0:00:03]} Bc2 {[%emt 0:00:05]} 1/2-1/2